bitfinex/quotes_SOLUSD_20241028
["timestamp","ask_amount","ask_price","bid_price","bid_amount"]
[1730089520823,0.1,174.32,174.31,22.77463659]
[1730089521120,0.2,174.32,174.31,22.77463659]
[1730089522122,0.1,174.32,174.31,22.77463659]
[1730089522304,0.2,174.32,174.31,22.77463659]
[1730089523116,0.1,174.32,174.31,22.77463659]
[1730089523419,0.2,174.32,174.31,22.77463659]
[1730089525012,0.1,174.33,174.31,22.77463659]
[1730089525209,0.2,174.34,174.32,22.77463659]
[1730089525421,0.2,174.34,174.33,22.77463659]
[1730089525715,0.1,174.35,174.33,45.67476318]
[1730089525923,0.1,174.36,174.34,22.77463659]
[1730089526129,0.1,174.36,174.35,22.77463659]
[1730089527526,0.2,174.37,174.35,22.77463659]
[1730089527732,0.2,174.37,174.36,22.77463659]
[1730089528026,0.2,174.38,174.36,22.77463659]
[1730089528322,0.2,174.38,174.33,22.90012659]
[1730089528323,0.1,174.38,174.37,22.77463659]
[1730089528510,0.1,174.39,174.37,22.77463659]
[1730089528709,0.1,174.39,174.38,22.77463659]
[1730089528908,0.1,174.41,174.38,22.77463659]
[1730089529112,0.1,174.42,174.4,22.77463659]
[1730089529422,0.2,174.42,174.41,22.77463659]
[1730089530113,0.2,174.45,174.41,22.77463659]
[1730089530309,14.3243,174.53,174.45,0.12549]
[1730089530310,0.1,174.46,174.45,0.12549]
[1730089530515,0.1,174.45,174.43,0.12549]
[1730089530728,0.1,174.45,174.44,22.90012659]
[1730089531241,0.1,174.46,174.44,22.90012659]
[1730089531404,0.1,174.48,174.45,22.77463659]
[1730089531604,0.2,174.49,174.47,22.77463659]
[1730089531808,0.1,174.48,174.47,22.77463659]
[1730089532008,0.1,174.49,174.47,22.77463659]
[1730089532407,0.1,174.48,174.47,22.77463659]
[1730089532610,0.2,174.48,174.47,22.77463659]
[1730089532930,0.2,174.47,174.46,22.77463659]
[1730089534406,0.2,174.46,174.45,22.77463659]
[1730089534640,0.1,174.44,174.43,22.77463659]
[1730089535002,0.2,174.44,174.43,22.77463659]
[1730089535827,0.2,174.42,174.36,16.515]
[1730089536011,0.2,174.42,174.41,22.77463659]
[1730089536512,0.2,174.42,174.41,14.21756062]
[1730089537238,0.1,174.45,174.42,0.12549]
[1730089537404,0.1,174.48,174.44,14.21756062]
[1730089537603,0.2,174.49,174.47,14.21756062]
[1730089537926,0.1,174.46,174.42,14.34305062]
[1730089539137,0.1,174.46,174.45,14.21756062]
[1730089539707,0.2,174.47,174.45,14.21756062]
[1730089539933,0.1,174.47,174.46,14.21756062]
[1730089540310,0.2,174.47,174.46,14.21756062]
[1730089540511,0.1,174.47,174.46,14.21756062]
[1730089540712,0.2,174.47,174.46,14.21756062]
[1730089542028,0.1,174.47,174.46,14.21756062]
[1730089542728,0.1,174.48,174.46,14.21756062]
[1730089542919,0.2,174.48,174.47,14.21756062]
[1730089545720,0.2,174.48,174.42,14.34305062]
[1730089545721,0.1,174.47,174.42,0.12549]
[1730089546117,0.1,174.47,174.46,14.21756062]
[1730089546819,0.1,174.48,174.46,14.21756062]
[1730089547021,0.1,174.48,174.47,14.21756062]
[1730089547321,0.2,174.48,174.47,14.21756062]
[1730089547925,0.1,174.49,174.47,14.21756062]
[1730089548120,0.1,174.5,174.48,14.21756062]
[1730089548327,0.2,174.51,174.49,14.21756062]
[1730089548531,0.2,174.51,174.5,14.21756062]
[1730089549318,0.1,174.51,174.5,14.21756062]
[1730089549515,0.2,174.51,174.5,14.21756062]
[1730089549837,0.1,174.5,174.48,14.21756062]
[1730089550339,0.2,174.48,174.47,14.21756062]
[1730089550935,0.2,174.48,174.46,14.21756062]
[1730089551144,0.1,174.47,174.43,30.0]
[1730089551324,0.2,174.47,174.42,14.21756062]
[1730089551637,0.2,174.47,174.46,14.21756062]
[1730089552337,0.1,174.47,174.46,14.21756062]
[1730089554432,36.3447,174.58,174.46,14.21756062]
[1730089554433,0.1,174.5,174.46,14.21756062]
[1730089554631,0.1,174.5,174.49,14.21756062]
[1730089555137,0.2,174.52,174.49,14.21756062]
[1730089555317,0.2,174.52,174.51,14.21756062]
[1730089555734,0.1,174.52,174.51,14.21756062]
[1730089556318,0.2,174.52,174.51,14.21756062]
[1730089556522,0.2,174.52,174.5,14.21756062]
[1730089556739,0.1,174.51,174.5,14.21756062]
[1730089556944,0.2,174.51,174.5,14.21756062]
[1730089558332,0.1,174.51,174.5,14.21756062]
[1730089558521,0.2,174.51,174.5,14.21756062]
[1730089560942,0.2,174.5,174.49,14.21756062]
[1730089564935,0.1,174.49,174.48,14.21756062]
[1730089565229,0.2,174.49,174.48,14.21756062]
[1730089565632,0.1,174.45,174.41,16.5616]
[1730089565950,0.2,174.44,174.41,16.5616]
[1730089566821,0.1,174.4,174.37,5.95251954]
[1730089567023,0.1,174.4,174.39,14.21756062]
[1730089567425,0.2,174.4,174.39,14.21756062]
[1730089572053,0.2,174.4,174.38,14.21756062]
[1730089573068,0.1,174.4,174.36,16.1005]
[1730089573354,0.2,174.4,174.38,14.21756062]
[1730089573558,0.1,174.39,174.38,14.21756062]
[1730089574534,0.2,174.39,174.38,14.21756062]
[1730089575951,0.2,174.37,174.36,14.21756062]
[1730089576161,0.2,174.36,174.34,14.21756062]
[1730089576351,0.2,174.36,174.33,14.21756062]
[1730089576539,0.2,174.36,174.34,14.21756062]
[1730089576742,0.1,174.35,174.34,14.21756062]
[1730089576943,0.2,174.31,174.3,0.4]
[1730089579664,14.41756062,174.31,174.3,0.4]
[1730089579865,0.2,174.31,174.3,0.4]
[1730089583356,0.2,174.31,174.3,14.61756062]
[1730089584559,0.2,174.31,174.3,0.4]
[1730089584765,41.51346062,174.31,174.3,0.4]
[1730089585370,35.77656062,174.31,174.3,0.4]
[1730089586257,41.51346062,174.31,174.3,0.4]
[1730089587173,41.73895062,174.31,174.3,0.4]
[1730089587366,65.51583462,174.31,174.3,0.4]
[1730089588375,65.64132462,174.31,174.3,0.4]
[1730089589475,65.51583462,174.31,174.3,0.4]
[1730089589682,65.41583462,174.31,174.3,0.4]
[1730089589986,65.51583462,174.31,174.3,0.4]
[1730089590885,65.51583462,174.31,174.25,0.5966361]
[1730089590886,27.7127,174.26,174.25,0.5966361]
[1730089591185,65.83263462,174.26,174.25,0.5966361]
[1730089591387,51.389584,174.26,174.25,0.5966361]
[1730089591568,65.83263462,174.26,174.25,0.5966361]
[1730089591769,51.389584,174.26,174.25,0.5966361]
[1730089591964,21.8742,174.26,174.25,0.5966361]
[1730089592270,5.9385,174.26,174.25,0.5966361]
[1730089592871,0.2,174.26,174.25,0.5966361]
[1730089593984,20.15606062,174.26,174.25,0.5966361]
[1730089594195,5.9385,174.26,174.25,0.5966361]
[1730089594682,20.15606062,174.26,174.25,0.5966361]
[1730089594888,5.9385,174.26,174.25,0.5966361]
[1730089595192,20.15606062,174.26,174.25,0.5966361]
[1730089597067,0.2,174.26,174.25,0.5966361]
[1730089597268,0.2,174.26,174.25,14.81419672]
[1730089597474,0.2,174.26,174.25,0.5966361]
[1730089598669,0.2,174.26,174.25,14.81419672]
[1730089599477,0.2,174.26,174.25,0.5966361]
[1730089600564,5.9385,174.26,174.25,0.5966361]
[1730089600974,44.15843462,174.26,174.25,0.5966361]
[1730089602494,5.9385,174.26,174.25,0.5966361]
[1730089603877,0.2,174.26,174.25,0.5966361]
[1730089604188,0.2,174.26,174.25,14.81419672]
[1730089604574,0.2,174.26,174.25,0.5966361]
[1730089606289,5.9385,174.26,174.25,0.5966361]
[1730089607406,0.2,174.26,174.25,0.5966361]
[1730089607581,0.2,174.26,174.25,14.81419672]
[1730089607777,0.2,174.26,174.25,0.5966361]
[1730089609300,0.2,174.26,174.25,14.81419672]
[1730089610103,0.2,174.26,174.25,0.5966361]
[1730089612492,5.9385,174.26,174.25,0.5966361]
[1730089615505,0.2,174.26,174.25,0.5966361]
[1730089620092,5.9385,174.26,174.25,0.5966361]
[1730089620408,20.38155062,174.26,174.25,0.5966361]
[1730089620607,43.271149,174.26,174.25,0.5966361]
[1730089621127,34.0482227,174.26,174.25,0.5966361]
[1730089621339,43.171149,174.26,174.25,0.5966361]
[1730089621913,33.9227327,174.26,174.25,0.5966361]
[1730089622225,10.1458487,174.26,174.25,0.5966361]
[1730089622725,4.4073487,174.26,174.25,9.7195624]
[1730089623236,4.4073487,174.26,174.25,0.5966361]
[1730089623523,10.1458487,174.26,174.25,0.5966361]
[1730089623921,4.4073487,174.26,174.25,0.5966361]
[1730089626419,10.1458487,174.26,174.25,0.5966361]
[1730089627133,43.045659,174.26,174.25,0.5966361]
[1730089627428,43.271149,174.26,174.25,0.5966361]
[1730089627731,66.622749,174.26,174.25,0.5966361]
[1730089628030,136.848239,174.26,174.25,0.5966361]
[1730089628534,141.9856833,174.26,174.25,0.5966361]
[1730089632239,141.99425911,174.26,174.25,0.5966361]
[1730089635432,141.99727161,174.26,174.25,0.5966361]
[1730089636140,141.99727161,174.26,174.25,3.61e-05]
[1730089638541,141.99727161,174.26,174.13,16.3532]
[1730089638542,0.1,174.14,174.13,16.3532]
[1730089638727,0.2,174.14,174.13,30.6135706]
[1730089639749,0.2,174.14,174.13,16.3532]
[1730089639962,0.2,174.09,174.08,23.3414361]
[1730089640161,0.1,174.09,174.08,37.6018067]
[1730089640363,0.2,174.09,174.08,14.8570067]
[1730089640665,0.2,174.09,174.08,0.5966361]
[1730089640846,0.2,174.09,174.08,14.8570067]
[1730089641174,0.2,174.09,174.08,0.5966361]
[1730089641537,0.1,174.1,174.08,37.1839067]
[1730089641744,0.1,174.12,174.08,22.9235361]
[1730089641957,0.1,174.12,174.11,14.2603706]
[1730089642266,0.1,174.14,174.11,14.2603706]
[1730089642452,0.1,174.13,174.08,22.9235361]
[1730089642768,0.2,174.13,174.12,14.2603706]
[1730089643871,0.2,174.15,174.12,14.2603706]
[1730089644038,0.2,174.15,174.14,14.2603706]
[1730089644765,0.2,174.16,174.14,14.2603706]
[1730089645068,0.1,174.16,174.15,14.2603706]
[1730089645367,0.2,174.17,174.15,14.2603706]
[1730089645663,0.2,174.17,174.16,14.2603706]
[1730089648491,0.2,174.17,174.16,9.12650654]
[1730089648854,0.1,174.17,174.16,9.12650654]
[1730089649083,0.1,174.09,174.08,16.8427361]
[1730089649750,0.1,174.11,174.08,16.8427361]
[1730089649949,0.1,174.12,174.08,16.8427361]
[1730089650149,0.2,174.13,174.11,9.12650654]
[1730089650362,0.1,174.13,174.12,9.12650654]
[1730089650551,0.2,174.15,174.12,14.26100816]
[1730089650778,0.1,174.15,174.14,14.26100816]
[1730089651564,0.1,174.16,174.14,14.26100816]
[1730089652265,0.2,174.16,174.15,14.26100816]
[1730089652663,0.1,174.16,174.15,14.26100816]
[1730089654478,0.1,174.16,174.13,6.0865]
[1730089654680,0.1,174.16,174.15,14.26100816]
[1730089655057,0.1,174.11,174.08,16.8427361]
[1730089655279,0.1,174.1,174.08,16.8427361]
[1730089655571,0.2,174.1,174.09,14.26100816]
[1730089657281,0.1,174.1,174.09,14.26100816]
[1730089657652,0.1,174.1,174.08,16.8427361]
[1730089657859,0.1,174.1,174.09,14.26100816]
[1730089659281,14.4521,174.19,174.09,14.26100816]
[1730089659282,0.2,174.12,174.09,14.26100816]
[1730089659482,0.2,174.12,174.11,14.26100816]
[1730089659860,0.1,174.09,174.08,0.5966361]
[1730089660062,0.1,174.09,174.08,14.85764426]
[1730089662057,0.1,174.1,174.08,14.85764426]
[1730089662258,0.1,174.11,174.09,14.26100816]
[1730089662484,0.2,174.11,174.1,14.26100816]
[1730089662873,0.1,174.11,174.1,14.26100816]
[1730089663180,0.2,174.11,174.1,14.26100816]
[1730089664062,0.1,174.11,174.1,14.26100816]
[1730089664265,0.2,174.11,174.1,14.26100816]
[1730089664874,0.2,174.12,174.1,14.26100816]
[1730089665087,0.2,174.13,174.11,14.26100816]
[1730089665396,0.1,174.15,174.12,14.26100816]
[1730089665567,0.2,174.16,174.14,14.26100816]
[1730089666084,0.2,174.16,174.15,14.26100816]
[1730089666568,0.1,174.16,174.15,14.26100816]
[1730089667084,0.2,174.16,174.15,14.26100816]
[1730089667678,0.1,174.16,174.15,14.26100816]
[1730089667883,0.2,174.16,174.15,14.26100816]
[1730089668696,0.2,174.17,174.15,14.26100816]
[1730089668992,0.2,174.17,174.16,14.26100816]
[1730089670991,15.3091,174.25,174.16,14.26100816]
[1730089670992,0.1,174.19,174.16,14.26100816]
[1730089671167,0.1,174.19,174.18,14.26100816]
[1730089672374,0.2,174.2,174.18,14.26100816]
[1730089672573,0.2,174.2,174.19,14.26100816]
[1730089673206,0.1,174.2,174.19,14.26100816]
[1730089673491,0.2,174.2,174.19,14.26100816]
[1730089673796,0.1,174.2,174.19,14.26100816]
[1730089674700,0.2,174.2,174.19,14.26100816]
[1730089675890,0.1,174.2,174.19,14.26100816]
[1730089676094,0.2,174.2,174.19,14.26100816]
[1730089676502,0.2,174.2,174.19,9.121964]
[1730089677723,0.1,174.2,174.19,9.121964]
[1730089677894,0.2,174.2,174.19,9.121964]
[1730089678516,0.1,174.2,174.19,9.121964]
[1730089678816,0.2,174.2,174.19,9.121964]
[1730089680726,0.1,174.19,174.11,44.027864]
[1730089680919,0.1,174.19,174.18,9.121964]
[1730089681820,0.2,174.2,174.18,9.121964]
[1730089682023,0.2,174.2,174.19,9.121964]
[1730089684395,0.1,174.13,174.1,15.0256]
[1730089684611,0.1,174.13,174.12,9.121964]
[1730089685793,0.2,174.14,174.12,9.121964]
[1730089685995,0.2,174.14,174.13,9.121964]
[1730089686200,0.1,174.14,174.13,9.121964]
[1730089686606,0.2,174.14,174.13,9.121964]
[1730089687016,0.1,174.14,174.13,9.121964]
[1730089688314,0.2,174.14,174.13,9.121964]
[1730089689228,0.1,174.14,174.13,9.121964]
[1730089689522,0.2,174.14,174.13,9.121964]
[1730089689727,0.2,174.17,174.13,9.121964]
[1730089690018,0.2,174.17,174.16,9.121964]
[1730089690317,0.1,174.17,174.16,9.121964]
[1730089691318,0.2,174.17,174.16,9.121964]
[1730089692811,0.1,174.17,174.16,9.121964]
[1730089693127,0.2,174.17,174.16,9.121964]
[1730089694205,0.1,174.17,174.16,9.121964]
[1730089694406,0.2,174.17,174.16,9.121964]
[1730089696911,0.1,174.17,174.16,9.121964]
[1730089697424,0.1,174.15,174.11,0.12549]
[1730089697723,0.1,174.15,174.14,9.121964]
[1730089698025,0.1,174.14,174.1,15.0256]
[1730089698331,0.2,174.13,174.1,15.0256]
[1730089698916,0.1,174.11,174.08,6.55232391]
[1730089699123,0.1,174.11,174.1,9.121964]
[1730089701613,0.2,174.12,174.1,9.121964]
[1730089701806,0.1,174.12,174.11,9.121964]
[1730089702129,0.1,174.13,174.11,9.121964]
[1730089702425,0.2,174.13,174.12,9.121964]
[1730089702720,0.1,174.13,174.12,9.121964]
[1730089702924,0.2,174.13,174.12,9.121964]
[1730089703225,0.2,174.13,174.08,6.55232391]
[1730089703429,0.1,174.13,174.08,6.55232391]
[1730089703727,0.2,174.13,174.12,9.121964]
[1730089704234,0.1,174.13,174.12,9.121964]
[1730089704406,0.2,174.13,174.08,6.55232391]
[1730089704606,0.1,174.13,174.12,9.121964]
[1730089704826,0.2,174.13,174.12,9.121964]
[1730089705022,0.2,174.13,174.08,6.55232391]
[1730089705329,0.2,174.13,174.12,9.121964]
[1730089706328,0.2,174.16,174.12,9.121964]
[1730089706528,0.1,174.15,174.09,0.25098]
[1730089706827,0.2,174.15,174.09,0.25098]
[1730089707129,0.1,174.14,174.09,0.25098]
[1730089707304,0.1,174.14,174.13,9.121964]
[1730089707506,0.1,174.16,174.13,9.247454]
[1730089707703,0.1,174.16,174.15,9.121964]
[1730089708209,0.1,174.13,174.08,20.5966361]
[1730089708414,0.1,174.13,174.12,9.121964]
[1730089709437,0.1,174.14,174.08,20.5966361]
[1730089709438,0.1,174.12,174.08,20.5966361]
[1730089709633,0.1,174.12,174.11,9.121964]
[1730089710318,0.1,174.11,174.08,0.5966361]
[1730089710518,0.1,174.11,174.1,9.121964]
[1730089711925,0.2,174.11,174.1,9.121964]
[1730089714617,0.1,174.11,174.1,9.121964]
[1730089715737,15.0791,174.17,174.1,9.121964]
[1730089715738,0.2,174.13,174.1,9.121964]
[1730089716039,0.2,174.13,174.08,0.5966361]
[1730089716040,0.2,174.13,174.12,9.121964]
[1730089717038,0.2,174.15,174.12,9.121964]
[1730089717340,0.2,174.15,174.14,9.121964]
[1730089717511,0.1,174.15,174.14,9.121964]
[1730089717716,0.2,174.15,174.14,9.121964]
[1730089718861,0.1,174.12,174.08,0.5966361]
[1730089719144,0.1,174.13,174.11,9.121964]
[1730089719327,0.1,174.13,174.12,9.121964]
[1730089719728,0.1,174.13,174.08,0.5966361]
[1730089720033,0.1,174.13,174.12,9.121964]
[1730089720646,0.1,174.14,174.12,9.121964]
[1730089720942,0.1,174.13,174.08,0.5966361]
[1730089721143,0.2,174.15,174.12,9.121964]
[1730089721347,0.2,174.15,174.14,9.121964]
[1730089723855,28.105,174.21,174.14,45.60982]
[1730089723856,0.1,174.16,174.14,45.60982]
[1730089724153,0.1,174.18,174.15,45.60982]
[1730089724319,0.1,174.17,174.09,0.12549]
[1730089724515,0.1,174.17,174.16,9.121964]
[1730089725021,0.1,174.18,174.16,9.121964]
[1730089725219,0.1,174.18,174.17,9.121964]
[1730089731844,0.2,174.18,174.17,9.121964]
[1730089732148,0.2,174.19,174.17,9.121964]
[1730089732353,0.2,174.19,174.18,9.121964]
[1730089732951,0.1,174.19,174.18,9.121964]
[1730089733458,0.2,174.2,174.18,9.121964]
[1730089733750,0.1,174.2,174.19,9.121964]
[1730089734052,0.2,174.2,174.19,9.121964]
[1730089734351,0.1,174.2,174.19,9.121964]
[1730089734532,0.1,174.19,174.15,36.487856]
[1730089734740,0.1,174.19,174.18,9.121964]
[1730089736547,0.2,174.2,174.18,9.121964]
[1730089736750,0.2,174.2,174.19,9.121964]
[1730089739829,0.2,174.2,174.09,0.12549]
[1730089739830,0.1,174.1,174.08,6.54925351]
[1730089740032,0.2,174.09,174.08,6.54925351]
[1730089740242,0.2,174.09,174.08,0.5966361]
[1730089742033,0.2,174.09,174.08,9.7186001]
[1730089742457,0.1,174.1,174.08,14.86644935]
[1730089742673,0.1,174.09,174.08,0.5966361]
[1730089742960,0.1,174.11,174.08,0.5966361]
[1730089742961,0.1,174.1,174.08,14.86644935]
[1730089743135,0.2,174.11,174.09,14.26981325]
[1730089743332,0.1,174.11,174.1,14.26981325]
[1730089744652,0.2,174.11,174.1,14.26981325]
[1730089744857,0.1,174.11,174.1,14.26981325]
[1730089745061,0.2,174.11,174.1,14.26981325]
[1730089745938,0.2,174.11,174.08,0.5966361]
[1730089745939,0.1,174.1,174.09,14.26981325]
[1730089746144,0.2,174.1,174.09,14.26981325]
[1730089751341,0.2,174.12,174.09,14.26981325]
[1730089751542,0.2,174.12,174.11,14.26981325]
[1730089752246,0.1,174.12,174.11,14.26981325]
[1730089753764,0.1,174.13,174.11,14.26981325]
[1730089753967,0.1,174.12,174.09,0.12549]
[1730089754945,0.1,174.12,174.11,14.26981325]
[1730089758649,0.2,174.12,174.11,14.26981325]
[1730089759567,0.2,174.11,174.1,14.26981325]
[1730089759757,0.2,174.1,174.09,14.26981325]
[1730089761970,0.2,174.1,174.08,14.86644935]
[1730089763652,0.1,174.09,174.08,14.86644935]
[1730089763850,0.2,174.1,174.08,14.86644935]
[1730089764048,0.2,174.09,174.08,0.5966361]
[1730089765073,22.4024,174.09,174.08,0.5966361]
[1730089768557,31.53952037,174.09,174.08,0.5966361]
[1730089769068,37.28362037,174.09,174.08,0.5966361]
[1730089771753,28.1465,174.09,174.08,0.5966361]
[1730089772078,0.2,174.09,174.08,0.5966361]
[1730089772378,0.2,174.09,174.08,9.73375647]
[1730089774753,0.2,174.09,174.08,0.5966361]
[1730089776978,5.9441,174.09,174.08,0.5966361]
[1730089777178,15.08122037,174.09,174.08,0.5966361]
[1730089777362,0.2,174.09,174.08,0.5966361]
[1730089777784,5.9441,174.09,174.08,0.5966361]
[1730089777988,15.08122037,174.09,174.08,0.5966361]
[1730089778884,0.1,173.97,173.94,5.42716094]
[1730089779079,0.1,173.97,173.87,16.2673]
[1730089779080,0.2,173.96,173.95,9.13712037]
[1730089779281,0.2,173.96,173.87,16.2673]
[1730089779482,0.2,173.96,173.95,9.13712037]
[1730089779883,0.1,173.94,173.91,5.96396933]
[1730089780094,0.1,173.94,173.93,9.13712037]
[1730089780293,0.1,173.94,173.91,5.96396933]
[1730089780599,0.2,173.95,173.93,14.29651671]
[1730089780805,0.1,173.95,173.94,14.29651671]
[1730089781185,0.2,173.97,173.94,14.29651671]
[1730089781387,0.2,173.98,173.96,14.29651671]
[1730089781687,0.1,173.98,173.97,14.29651671]
[1730089782179,0.2,173.98,173.97,14.29651671]
[1730089783403,0.1,173.98,173.97,14.29651671]
[1730089783792,0.1,173.96,173.92,20.0]
[1730089783993,0.1,173.96,173.95,14.29651671]
[1730089784609,0.2,173.97,173.95,14.29651671]
[1730089784799,0.1,174.0,173.96,14.29651671]
[1730089784985,0.2,174.0,173.99,14.29651671]
[1730089785188,0.1,174.0,173.99,14.29651671]
[1730089785694,0.1,174.01,173.99,14.29651671]
[1730089785899,0.1,173.99,173.97,14.29651671]
[1730089786215,0.2,173.99,173.93,20.0]
[1730089786387,0.2,173.99,173.94,0.12549]
[1730089787341,0.2,174.01,173.98,14.29651671]
[1730089787615,0.1,174.01,174.0,14.29651671]
[1730089788383,0.2,174.05,174.0,14.29651671]
[1730089788586,0.1,174.01,173.96,16.2567]
[1730089788915,0.2,174.03,174.0,14.29651671]
[1730089789205,0.1,174.01,173.97,14.29651671]
[1730089789996,0.1,174.01,174.0,14.29651671]
[1730089790490,0.2,174.03,174.0,14.29651671]
[1730089790825,0.1,174.03,174.02,14.29651671]
[1730089791017,0.2,174.03,174.02,14.29651671]
[1730089791403,0.1,174.03,174.02,14.29651671]
[1730089791619,0.1,174.05,174.02,14.29651671]
[1730089791796,0.2,174.05,174.04,14.29651671]
[1730089792117,0.2,174.07,174.04,28.59303342]
[1730089792324,0.2,174.07,173.96,16.2567]
[1730089792325,0.2,174.07,174.06,28.59303342]
[1730089798431,0.2,174.07,174.06,14.29651671]
[1730089800912,0.1,174.05,173.99,20.25098]
[1730089801120,0.1,174.05,174.04,14.29651671]
[1730089801333,0.1,174.06,174.04,14.29651671]
[1730089801555,0.1,174.06,174.05,14.29651671]
[1730089802904,0.1,174.05,173.99,20.25098]
[1730089803326,0.1,174.05,174.04,14.29651671]
[1730089803705,0.1,174.06,174.04,14.29651671]
[1730089803904,0.1,174.06,174.05,14.29651671]
[1730089804109,0.1,173.94,173.85,15.7009]
[1730089804526,0.1,173.97,173.85,21.4457]
[1730089804724,0.1,173.96,173.85,21.4457]
[1730089805135,0.1,173.96,173.94,14.29651671]
[1730089805351,0.1,173.96,173.92,14.29651671]
[1730089805352,0.1,173.94,173.92,14.29651671]
[1730089805640,0.1,173.94,173.88,14.29651671]
[1730089805641,0.2,173.91,173.88,14.29651671]
[1730089806057,14.49651671,173.91,173.85,14.29651671]
[1730089806342,0.1,173.92,173.79,15.7009]
[1730089806519,0.1,173.94,173.91,14.29651671]
[1730089806726,0.1,173.94,173.93,14.29651671]
[1730089807216,0.2,173.94,173.93,14.29651671]
[1730089807626,0.1,173.96,173.93,14.29651671]
[1730089807826,5.96259865,173.97,173.95,14.29651671]
[1730089808041,14.29651671,174.02,173.96,14.29651671]
[1730089808042,0.1,173.99,173.96,14.29651671]
[1730089808341,0.1,174.01,173.98,14.29651671]
[1730089808537,0.1,174.01,173.99,14.29651671]
[1730089809129,0.1,174.0,173.98,14.29651671]
[1730089809325,0.1,174.0,173.97,14.29651671]
[1730089809529,0.1,174.01,173.98,14.29651671]
[1730089809949,0.1,174.0,173.97,14.29651671]
[1730089810443,0.1,174.01,173.97,14.29651671]
[1730089810943,0.1,174.0,173.98,14.29651671]
[1730089811157,0.1,174.01,173.99,14.29651671]
[1730089811950,0.1,174.0,173.98,14.29651671]
[1730089812245,0.1,174.0,173.99,14.29651671]
[1730089814619,0.2,174.0,173.99,14.29651671]
[1730089814831,0.2,174.0,173.98,14.29651671]
[1730089815240,15.4238,174.06,173.96,14.29651671]
[1730089815241,0.1,173.98,173.96,14.29651671]
[1730089815451,0.2,173.98,173.96,14.29651671]
[1730089816036,0.1,173.96,173.94,14.29651671]
[1730089816352,0.1,173.95,173.94,14.29651671]
[1730089817531,0.2,173.95,173.94,14.29651671]
[1730089817726,0.2,173.95,173.9,0.5966361]
[1730089817727,0.2,173.94,173.92,14.29651671]
[1730089818051,0.2,173.92,173.91,14.29651671]
[1730089818233,5.7488,173.95,173.9,14.89315281]
[1730089818234,0.2,173.91,173.9,14.89315281]
[1730089818627,0.1,173.91,173.9,14.89315281]
[1730089819034,0.2,173.91,173.9,14.89315281]
[1730089821545,0.1,173.91,173.9,14.89315281]
[1730089822141,0.2,173.91,173.9,14.89315281]
[1730089823250,0.2,173.91,173.9,0.5966361]
[1730089823834,0.2,173.91,173.9,14.89315281]
[1730089824064,0.1,173.91,173.9,14.89315281]
[1730089824237,0.2,173.95,173.9,14.89315281]
[1730089824437,0.1,173.94,173.9,0.5966361]
[1730089824736,0.2,173.94,173.9,0.5966361]
[1730089825551,0.2,173.94,173.93,14.29651671]
[1730089827447,0.1,173.94,173.93,14.29651671]
[1730089827649,0.2,173.94,173.93,14.29651671]
[1730089827849,0.1,173.94,173.93,14.29651671]
[1730089828050,0.2,173.94,173.93,14.29651671]
[1730089828561,0.2,173.95,173.93,14.29651671]
[1730089828750,0.1,173.99,173.94,28.59303342]
[1730089829066,0.1,173.99,173.98,14.29651671]
[1730089829267,0.1,174.0,173.98,14.29651671]
[1730089829562,0.1,174.0,173.99,14.29651671]